[Event "13th Arad Open 2020"]
[Site "Arad"]
[Date "2020.09.28"]
[Round "5.9"]
[White "Didiliuc, Dariana-Gabriela"]
[Black "Pisu, Robert-Daniel"]
[Result "0-1"]
[ECO "A58"]
[WhiteElo "1880"]
[BlackElo "2223"]
[Annotator "ChessBase"]
[PlyCount "42"]
[EventDate "2020.09.25"]
[EventType "swiss"]
[EventCountry "ROU"]
[SourceTitle "playchess.com"]
[Source "ChessBase"]
[SourceQuality "1"]
[TimeControl "5400+30"]

1. d4 {[%emt 0:00:00]} Nf6 {[%emt 0:00:00]} 2. c4 {[%emt 0:00:00]} c5 {[%emt 0:00:13]} 3. d5 {[%emt 0:00:00]} b5 {[%emt 0:00:55]} 4. cxb5 {[%emt 0:00:09]} a6 {[%emt 0:00:07]} 5. bxa6 {[%emt 0:00:25]} g6 {[%emt 0:00:20]} 6. Nc3 {[%emt 0:00:36]} Bg7 {[%emt 0:00:16]} 7. e4 {[%emt 0:00:57]} O-O {[%emt 0:00:26]} 8. Qc2 {[%emt 0:00:40]} Qa5 {[%emt 0:02:37]} 9. g3 {[%emt 0:02:28]} Nxe4 {[%emt 0:03:53]} 10. Nge2 {[%emt 0:03:06]} Nxc3 {[%emt 0:01:45]} 11. Nxc3 {[%emt 0:00:53]} Bxa6 {[%emt 0:05:41]} 12. Bd2 {[%emt 0:00:43]} d6 {[%emt 0:12:50]} 13. Ne4 {[%emt 0:07:16]} Qb6 {[%emt 0:01:58]} 14. Bc3 {[%emt 0:00:06]} Nd7 {[%emt 0:05:45]} 15. Bxg7 {[%emt 0:08:19]} Kxg7 {[%emt 0:00:26]} 16. Qc3+ {[%emt 0:05:08]} Kg8 {[%emt 0:01:05]} 17. Bxa6 {[%emt 0:14:56]} Qxa6 {[%emt 0:03:46]} 18. Qd2 {[%emt 0:02:41]} Ne5 {[%emt 0:01:58]} 19. Qe2 {[%emt 0:01:34]} Nd3+ {[%emt 0:00:49]} 20. Kd1 {[%emt 0:00:14]} Qa4+ {[%emt 0:00:19]} 21. b3 {[%emt 0:00:13]} Qxe4 {[%emt 0:00:09]} 0-1

[Event "13th Arad Open 2020"]
[Site "Arad"]
[Date "2020.09.28"]
[Round "5.10"]
[White "Lup, Constantin-Ionel"]
[Black "Ursan, Petru-Sebastian"]
[Result "0-1"]
[ECO "A25"]
[WhiteElo "1662"]
[BlackElo "2248"]
[Annotator "ChessBase"]
[PlyCount "96"]
[EventDate "2020.09.25"]
[EventType "swiss"]
[EventCountry "ROU"]
[SourceTitle "playchess.com"]
[Source "ChessBase"]
[SourceQuality "1"]
[TimeControl "5400+30"]

1. c4 {[%emt 0:00:00]} g6 {[%emt 0:00:00]} 2. g3 {[%emt 0:00:00]} Bg7 {[%emt 0:00:11]} 3. Bg2 {[%emt 0:00:03]} Nc6 {[%emt 0:00:43]} 4. Nc3 {[%emt 0:01:00]} e5 {[%emt 0:01:39]} 5. d3 {[%emt 0:01:50]} Nge7 {[%emt 0:00:35]} 6. e3 {[%emt 0:00:59]} d6 {[%emt 0:01:43]} 7. Nge2 {[%emt 0:00:46]} h5 {[%emt 0:00:22]} 8. h4 {[%emt 0:02:01]} O-O {[%emt 0:06:06]} 9. a3 {[%emt 0:02:35]} a5 {[%emt 0:03:09]} 10. Rb1 {[%emt 0:03:55]} Bg4 {[%emt 0:11:02]} 11. b4 {[%emt 0:07:34]} axb4 {[%emt 0:00:38]} 12. axb4 {[%emt 0:00:09]} Qc8 {[%emt 0:21:52]} 13. Bd2 {[%emt 0:08:47]} Ra3 {[%emt 0:08:25]} 14. Qc2 {[%emt 0:04:54]} Rd8 {[%emt 0:16:24]} 15. b5 {[%emt 0:06:53]} Nb8 {[%emt 0:04:01]} 16. Na4 {[%emt 0:19:54]} d5 {[%emt 0:06:25]} 17. Bb4 {[%emt 0:15:52]} dxc4 {[%emt 0:00:53]} 18. Bxa3 {[%emt 0:01:48]} cxd3 {[%emt 0:00:48]} 19. Qb3 {[%emt 0:00:59]} dxe2 {[%emt 0:01:16]} 20. Nc3 {[%emt 0:01:05]} e4 {[%emt 0:06:31]} 21. Nxe2 {[%emt 0:04:14]} Rd3 {[%emt 0:00:17]} 22. Qb4 {[%emt 0:04:49]} Nd5 {[%emt 0:01:01]} 23. Qxe4 {[%emt 0:02:34]} Bxe2 {[%emt 0:00:37]} 24. Kxe2 {[%emt 0:00:32]} Nc3+ {[%emt 0:00:24]} 25. Kxd3 {[%emt 0:00:09]} Qd7+ {[%emt 0:00:45]} 26. Kc2 {[%emt 0:01:11]} Nxe4 {[%emt 0:00:47]} 27. Bxe4 {[%emt 0:00:08]} Qe6 {[%emt 0:00:16]} 28. Bd3 {[%emt 0:01:48]} Qa2+ {[%emt 0:00:38]} 29. Bb2 {[%emt 0:00:13]} Nd7 {[%emt 0:00:51]} 30. Kc1 {[%emt 0:01:44]} Nc5 {[%emt 0:00:28]} 31. Bc2 {[%emt 0:00:38]} b6 {[%emt 0:04:38]} 32. Bxg7 {[%emt 0:01:14]} Kxg7 {[%emt 0:00:05]} 33. Rd1 {[%emt 0:00:38]} Qa5 {[%emt 0:01:25]} 34. Rd2 {[%emt 0:01:08]} Qc3 {[%emt 0:00:26]} 35. Kd1 {[%emt 0:01:21]} Qc4 {[%emt 0:00:36]} 36. Ke1 {[%emt 0:00:20]} Qc3 {[%emt 0:00:32]} 37. Kd1 {[%emt 0:00:12]} Qc4 {[%emt 0:00:43]} 38. Ke1 {[%emt 0:00:09]} Kf6 {[%emt 0:00:44]} 39. f4 {[%emt 0:01:09]} Qc3 {[%emt 0:00:45]} 40. Ke2 {[%emt 0:01:01]} Kg7 {[%emt 0:00:22]} 41. f5 {[%emt 0:02:25]} gxf5 {[%emt 0:00:16]} 42. Bxf5 {[%emt 0:00:17]} Qe5 {[%emt 0:00:20]} 43. g4 {[%emt 0:01:46]} hxg4 {[%emt 0:00:16]} 44. Bxg4 {[%emt 0:00:44]} Qh2+ {[%emt 0:00:11]} 45. Kd1 {[%emt 0:00:17]} Qg1+ {[%emt 0:00:16]} 46. Kc2 {[%emt 0:00:18]} Qxg4 {[%emt 0:00:07]} 47. Rdd1 {[%emt 0:00:44]} Qc4+ {[%emt 0:00:23]} 48. Kd2 {[%emt 0:00:19]} Qd3+ {[%emt 0:00:09]} 0-1

[Event "13th Arad Open 2020"]
[Site "Arad"]
[Date "2020.09.29"]
[Round "6.1"]
[White "Kozak, Adam"]
[Black "Manolache, Marius"]
[Result "1/2-1/2"]
[ECO "A05"]
[WhiteElo "2503"]
[BlackElo "2541"]
[Annotator "ChessBase"]
[PlyCount "66"]
[EventDate "2020.09.25"]
[EventType "swiss"]
[EventCountry "ROU"]
[SourceTitle "playchess.com"]
[Source "ChessBase"]
[SourceQuality "1"]
[TimeControl "5400+30"]

1. Nf3 {[%emt 0:01:15]} Nf6 {[%emt 0:00:00]} 2. g3 {[%emt 0:00:09]} g6 {[%emt 0:00:00]} 3. b3 {[%emt 0:00:06]} Bg7 {[%emt 0:01:24]} 4. Bb2 {[%emt 0:00:08]} d6 {[%emt 0:01:12]} 5. d4 {[%emt 0:00:09]} a5 {[%emt 0:02:14]} 6. Bg2 {[%emt 0:09:03]} O-O {[%emt 0:03:38]} 7. O-O {[%emt 0:00:53]} a4 {[%emt 0:02:55]} 8. c4 {[%emt 0:03:07]} axb3 {[%emt 0:04:30]} 9. axb3 {[%emt 0:00:08]} Rxa1 {[%emt 0:00:06]} 10. Bxa1 {[%emt 0:00:09]} c6 {[%emt 0:00:11]} 11. Nbd2 {[%emt 0:09:12]} d5 {[%emt 0:03:08]} 12. Bc3 {[%emt 0:03:57]} Ne4 {[%emt 0:02:19]} 13. Nxe4 {[%emt 0:07:11]} dxe4 {[%emt 0:01:54]} 14. Ne1 {[%emt 0:06:03]} c5 {[%emt 0:07:21]} 15. Nc2 {[%emt 0:02:48]} Nc6 {[%emt 0:01:10]} 16. e3 {[%emt 0:01:06]} Qb6 {[%emt 0:20:09]} 17. b4 {[%emt 0:08:15]} cxb4 {[%emt 0:00:45]} 18. c5 {[%emt 0:16:10]} Qb5 {[%emt 0:10:37]} 19. Nxb4 {[%emt 0:01:20]} Nxb4 {[%emt 0:00:13]} 20. Qb1 {[%emt 0:00:36]} Bd7 {[%emt 0:08:52]} 21. Bxb4 {[%emt 0:04:28]} Bc6 {[%emt 0:02:59]} 22. Bxe4 {[%emt 0:03:00]} Bxe4 {[%emt 0:00:10]} 23. Qxe4 {[%emt 0:00:05]} Qxb4 {[%emt 0:00:03]} 24. Rb1 {[%emt 0:00:06]} Qc4 {[%emt 0:04:46]} 25. Qxe7 {[%emt 0:00:46]} Bxd4 {[%emt 0:14:05]} 26. exd4 {[%emt 0:02:06]} Qxd4 {[%emt 0:00:04]} 27. h4 {[%emt 0:01:08]} Rc8 {[%emt 0:06:40]} 28. Rxb7 {[%emt 0:11:09]} Qd1+ {[%emt 0:00:07]} 29. Kg2 {[%emt 0:02:40]} Qd5+ {[%emt 0:00:05]} 30. f3 {[%emt 0:01:38]} Qd2+ {[%emt 0:01:40]} 31. Kh3 {[%emt 0:00:19]} Qd5 {[%emt 0:00:08]} 32. Qd7 {[%emt 0:01:55]} Qxd7+ {[%emt 0:00:10]} 33. Rxd7 {[%emt 0:00:03]} Rxc5 {[%emt 0:00:05]} 1/2-1/2

[Event "13th Arad Open 2020"]
[Site "Arad"]
[Date "2020.09.29"]
[Round "6.2"]
[White "Istratescu, Andrei"]
[Black "Solodovnichenko, Yuri"]
[Result "1/2-1/2"]
[ECO "A30"]
[WhiteElo "2551"]
[BlackElo "2553"]
[Annotator "ChessBase"]
[PlyCount "46"]
[EventDate "2020.09.25"]
[EventType "swiss"]
[EventCountry "ROU"]
[SourceTitle "playchess.com"]
[Source "ChessBase"]
[SourceQuality "1"]
[TimeControl "5400+30"]

1. c4 {[%emt 0:00:17]} c5 {[%emt 0:00:00]} 2. Nc3 {[%emt 0:02:07]} Nf6 {[%emt 0:00:01]} 3. Nf3 {[%emt 0:00:19]} e6 {[%emt 0:00:05]} 4. g3 {[%emt 0:00:33]} b6 {[%emt 0:00:04]} 5. Bg2 {[%emt 0:00:05]} Bb7 {[%emt 0:00:04]} 6. O-O {[%emt 0:00:23]} Be7 {[%emt 0:00:05]} 7. d4 {[%emt 0:02:03]} cxd4 {[%emt 0:00:06]} 8. Qxd4 {[%emt 0:00:03]} O-O {[%emt 0:00:15]} 9. Bg5 {[%emt 0:01:59]} h6 {[%emt 0:00:13]} 10. Bxf6 {[%emt 0:00:13]} Bxf6 {[%emt 0:00:05]} 11. Qd2 {[%emt 0:01:21]} Qe7 {[%emt 0:06:04]} 12. Rac1 {[%emt 0:00:47]} Rc8 {[%emt 0:20:50]} 13. Nb5 {[%emt 0:08:41]} Bxf3 {[%emt 0:16:02]} 14. Bxf3 {[%emt 0:04:11]} Nc6 {[%emt 0:00:30]} 15. Rfd1 {[%emt 0:04:53]} Rd8 {[%emt 0:07:29]} 16. b3 {[%emt 0:04:37]} Rab8 {[%emt 0:01:04]} 17. Bg2 {[%emt 0:06:23]} a6 {[%emt 0:05:17]} 18. Nd6 {[%emt 0:01:52]} g6 {[%emt 0:01:31]} 19. h4 {[%emt 0:10:55]} Bg7 {[%emt 0:00:44]} 20. Qe3 {[%emt 0:05:49]} h5 {[%emt 0:14:42]} 21. Rd2 {[%emt 0:02:43]} f5 {[%emt 0:05:57]} 22. Rcd1 {[%emt 0:01:42]} Rf8 {[%emt 0:02:39]} 23. f4 {[%emt 0:12:23]} Kh7 {[%emt 0:03:51]} 1/2-1/2

[Event "13th Arad Open 2020"]
[Site "Arad"]
[Date "2020.09.29"]
[Round "6.3"]
[White "Filip, Lucian-Ioan"]
[Black "Daianu, Cristian-Clement"]
[Result "1-0"]
[ECO "A96"]
[WhiteElo "2432"]
[BlackElo "2224"]
[Annotator "ChessBase"]
[PlyCount "65"]
[EventDate "2020.09.25"]
[EventType "swiss"]
[EventCountry "ROU"]
[SourceTitle "playchess.com"]
[Source "ChessBase"]
[SourceQuality "1"]
[TimeControl "5400+30"]

1. Nf3 {[%emt 0:00:00]} f5 {[%emt 0:04:31]} 2. g3 {[%emt 0:01:22]} Nf6 {[%emt 0:00:40]} 3. Bg2 {[%emt 0:00:06]} d6 {[%emt 0:00:06]} 4. d4 {[%emt 0:00:11]} e6 {[%emt 0:00:10]} 5. O-O {[%emt 0:00:09]} Be7 {[%emt 0:00:07]} 6. c4 {[%emt 0:03:26]} O-O {[%emt 0:00:06]} 7. Qc2 {[%emt 0:07:07]} Ne4 {[%emt 0:06:42]} 8. Nbd2 {[%emt 0:02:12]} d5 {[%emt 0:02:30]} 9. Ne5 {[%emt 0:06:06]} Nc6 {[%emt 0:13:37]} 10. Ndf3 {[%emt 0:08:13]} Nb4 {[%emt 0:13:38]} 11. Qa4 {[%emt 0:17:41]} c6 {[%emt 0:32:57]} 12. a3 {[%emt 0:01:15]} Na6 {[%emt 0:00:10]} 13. c5 {[%emt 0:03:06]} Nc7 {[%emt 0:01:49]} 14. Ne1 {[%emt 0:06:34]} Bd7 {[%emt 0:04:13]} 15. N1d3 {[%emt 0:01:06]} Nb5 {[%emt 0:00:51]} 16. f3 {[%emt 0:00:44]} Nf6 {[%emt 0:00:30]} 17. Be3 {[%emt 0:02:09]} Be8 {[%emt 0:01:10]} 18. Qb3 {[%emt 0:04:17]} Rb8 {[%emt 0:03:22]} 19. a4 {[%emt 0:00:09]} Nc7 {[%emt 0:00:01]} 20. Qc3 {[%emt 0:00:58]} Nd7 {[%emt 0:02:09]} 21. Nxd7 {[%emt 0:00:14]} Qxd7 {[%emt 0:00:03]} 22. Bf4 {[%emt 0:00:12]} g5 {[%emt 0:02:07]} 23. Be5 {[%emt 0:00:10]} Bg6 {[%emt 0:00:04]} 24. Qa5 {[%emt 0:05:51]} Rbc8 {[%emt 0:06:40]} 25. Qxa7 {[%emt 0:00:50]} Ne8 {[%emt 0:00:09]} 26. a5 {[%emt 0:02:22]} Nf6 {[%emt 0:01:54]} 27. a6 {[%emt 0:00:44]} bxa6 {[%emt 0:00:05]} 28. Rxa6 {[%emt 0:10:59]} Rfd8 {[%emt 0:00:52]} 29. Qxd7 {[%emt 0:02:14]} Rxd7 {[%emt 0:00:07]} 30. Nb4 {[%emt 0:00:12]} Kf7 {[%emt 0:02:17]} 31. Nxc6 {[%emt 0:00:52]} Rb7 {[%emt 0:00:04]} 32. b4 {[%emt 0:01:32]} Ne8 {[%emt 0:01:33]} 33. Rfa1 {[%emt 0:00:47]} 1-0

[Event "13th Arad Open 2020"]
[Site "Arad"]
[Date "2020.09.29"]
[Round "6.4"]
[White "Pisu, Robert-Daniel"]
[Black "Antonica, Dragos-Andrei"]
[Result "1/2-1/2"]
[ECO "D30"]
[WhiteElo "2223"]
[BlackElo "2301"]
[Annotator "ChessBase"]
[PlyCount "89"]
[EventDate "2020.09.25"]
[EventType "swiss"]
[EventCountry "ROU"]
[SourceTitle "playchess.com"]
[Source "ChessBase"]
[SourceQuality "1"]
[TimeControl "5400+30"]

1. d4 {[%emt 0:00:00]} d5 {[%emt 0:00:00]} 2. c4 {[%emt 0:00:00]} e6 {[%emt 0:00:04]} 3. Nf3 {[%emt 0:00:12]} Nf6 {[%emt 0:00:26]} 4. g3 {[%emt 0:00:27]} dxc4 {[%emt 0:00:42]} 5. Qa4+ {[%emt 0:05:36]} Nc6 {[%emt 0:04:47]} 6. Bg2 {[%emt 0:03:30]} Bd6 {[%emt 0:01:10]} 7. Qxc4 {[%emt 0:06:49]} O-O {[%emt 0:00:18]} 8. Bf4 {[%emt 0:01:45]} Bxf4 {[%emt 0:12:34]} 9. gxf4 {[%emt 0:00:02]} Qd6 {[%emt 0:00:16]} 10. e3 {[%emt 0:11:37]} Qb4+ {[%emt 0:17:24]} 11. Nbd2 {[%emt 0:00:12]} Qxb2 {[%emt 0:00:13]} 12. Rb1 {[%emt 0:00:19]} Qa3 {[%emt 0:00:01]} 13. O-O {[%emt 0:10:03]} Nd5 {[%emt 0:08:30]} 14. Rfc1 {[%emt 0:28:44]} Nce7 {[%emt 0:06:31]} 15. Qc2 {[%emt 0:13:03]} Ng6 {[%emt 0:14:31]} 16. Nc4 {[%emt 0:04:31]} Qe7 {[%emt 0:00:11]} 17. Na5 {[%emt 0:01:44]} b6 {[%emt 0:10:07]} 18. Nc6 {[%emt 0:01:37]} Qe8 {[%emt 0:00:45]} 19. h4 {[%emt 0:04:35]} h6 {[%emt 0:02:40]} 20. Nce5 {[%emt 0:01:51]} Nxe5 {[%emt 0:03:46]} 21. fxe5 {[%emt 0:00:01]} Bb7 {[%emt 0:01:23]} 22. Qe4 {[%emt 0:00:42]} Rb8 {[%emt 0:05:06]} 23. Qg4 {[%emt 0:00:06]} f5 {[%emt 0:00:43]} 24. exf6 {[%emt 0:00:15]} Nxf6 {[%emt 0:00:42]} 25. Qg3 {[%emt 0:02:36]} Nh5 {[%emt 0:04:51]} 26. Qg4 {[%emt 0:00:34]} Nf6 {[%emt 0:00:54]} 27. Qg3 Be4 {[%emt 0:01:03]} 28. Rb2 {[%emt 0:02:33]} Nh5 {[%emt 0:02:25]} 29. Qh3 {[%emt 0:00:01]} Bxf3 {[%emt 0:01:24]} 30. Bxf3 {[%emt 0:00:04]} Rf5 {[%emt 0:00:41]} 31. Bg4 {[%emt 0:01:25]} Qg6 {[%emt 0:00:31]} 32. Kh2 {[%emt 0:00:30]} Rf6 {[%emt 0:00:37]} 33. Rxc7 {[%emt 0:00:24]} Rbf8 {[%emt 0:00:31]} 34. f4 {[%emt 0:00:25]} Kh7 {[%emt 0:00:41]} 35. Rg2 {[%emt 0:00:13]} R8f7 {[%emt 0:00:24]} 36. Rxf7 {[%emt 0:00:43]} Qxf7 {[%emt 0:00:08]} 37. Qf3 {[%emt 0:00:24]} g6 {[%emt 0:00:35]} 38. Bxh5 {[%emt 0:00:08]} gxh5 {[%emt 0:00:01]} 39. Qe4+ {[%emt 0:00:22]} Rf5 {[%emt 0:00:15]} 40. Rc2 {[%emt 0:00:38]} Qe7 {[%emt 0:00:17]} 41. Kh3 {[%emt 0:00:18]} Qg7 {[%emt 0:00:40]} 42. Rg2 {[%emt 0:01:13]} Qf7 {[%emt 0:00:52]} 43. Rc2 {[%emt 0:00:41]} Qg7 {[%emt 0:00:05]} 44. Rg2 {[%emt 0:00:26]} Qf7 {[%emt 0:00:02]} 45. Rc2 {[%emt 0:00:28]} 1/2-1/2

[Event "13th Arad Open 2020"]
[Site "Arad"]
[Date "2020.09.29"]
[Round "6.5"]
[White "Isfan, Ioan-Marius"]
[Black "Ghimpu, Samuel-Timotei"]
[Result "0-1"]
[ECO "A46"]
[WhiteElo "2187"]
[BlackElo "2302"]
[Annotator "ChessBase"]
[PlyCount "70"]
[EventDate "2020.09.25"]
[EventType "swiss"]
[EventCountry "ROU"]
[SourceTitle "playchess.com"]
[Source "ChessBase"]
[SourceQuality "1"]
[TimeControl "5400+30"]

1. d4 {[%emt 0:09:47]} Nf6 {[%emt 0:00:00]} 2. Bg5 {[%emt 0:00:05]} e6 {[%emt 0:00:30]} 3. Nf3 {[%emt 0:00:37]} c5 {[%emt 0:00:09]} 4. e3 {[%emt 0:06:50]} h6 {[%emt 0:00:10]} 5. Bh4 {[%emt 0:00:11]} Qb6 {[%emt 0:06:43]} 6. Qc1 {[%emt 0:00:52]} Nc6 {[%emt 0:02:25]} 7. c3 {[%emt 0:00:21]} d5 {[%emt 0:02:07]} 8. Nbd2 {[%emt 0:05:52]} Bd7 {[%emt 0:01:02]} 9. Bd3 {[%emt 0:13:32]} Rc8 {[%emt 0:01:00]} 10. O-O {[%emt 0:10:44]} Nh5 {[%emt 0:22:13]} 11. Re1 {[%emt 0:14:06]} g5 {[%emt 0:02:21]} 12. Bg3 {[%emt 0:01:52]} Bg7 {[%emt 0:01:55]} 13. e4 {[%emt 0:01:20]} O-O {[%emt 0:12:58]} 14. exd5 {[%emt 0:14:42]} exd5 {[%emt 0:00:13]} 15. dxc5 {[%emt 0:01:06]} Qxc5 {[%emt 0:00:26]} 16. Nb3 {[%emt 0:00:56]} Qb6 {[%emt 0:00:01]} 17. Qe3 {[%emt 0:00:43]} d4 {[%emt 0:23:48]} 18. Nfxd4 {[%emt 0:02:11]} Nxd4 {[%emt 0:00:08]} 19. cxd4 {[%emt 0:00:08]} Nxg3 {[%emt 0:00:20]} 20. hxg3 {[%emt 0:06:34]} Rfe8 {[%emt 0:00:23]} 21. Be4 {[%emt 0:03:47]} Qb4 {[%emt 0:07:33]} 22. Qd3 {[%emt 0:01:44]} b6 {[%emt 0:01:08]} 23. Re3 {[%emt 0:02:30]} a5 {[%emt 0:01:16]} 24. a3 {[%emt 0:00:45]} Qd6 {[%emt 0:03:27]} 25. Rd1 {[%emt 0:00:07]} Ba4 {[%emt 0:03:12]} 26. Rde1 {[%emt 0:00:18]} Kf8 {[%emt 0:01:00]} 27. Kh2 {[%emt 0:01:04]} h5 {[%emt 0:01:32]} 28. Rf3 {[%emt 0:00:37]} Rc7 {[%emt 0:00:18]} 29. Rf5 {[%emt 0:00:36]} Rce7 {[%emt 0:00:42]} 30. Re3 {[%emt 0:00:31]} Bf6 {[%emt 0:00:47]} 31. Ref3 {[%emt 0:00:16]} Rxe4 {[%emt 0:00:04]} 32. Rxf6 {[%emt 0:00:45]} Rh4+ {[%emt 0:00:01]} 33. Kg1 {[%emt 0:00:02]} Re1+ {[%emt 0:00:09]} 34. Qf1 {[%emt 0:00:02]} Rxf1+ {[%emt 0:00:19]} 35. Kxf1 {[%emt 0:00:00]} Rh1+ {[%emt 0:00:14]} 0-1

[Event "13th Arad Open 2020"]
[Site "Arad"]
[Date "2020.09.29"]
[Round "6.6"]
[White "Talu, Mircea"]
[Black "Filip, Andrei"]
[Result "1-0"]
[ECO "A62"]
[WhiteElo "2351"]
[BlackElo "2003"]
[Annotator "ChessBase"]
[PlyCount "137"]
[EventDate "2020.09.25"]
[EventType "swiss"]
[EventCountry "ROU"]
[SourceTitle "playchess.com"]
[Source "ChessBase"]
[SourceQuality "1"]
[TimeControl "5400+30"]

1. d4 {[%emt 0:05:47]} Nf6 {[%emt 0:00:00]} 2. c4 {[%emt 0:00:05]} e6 {[%emt 0:00:00]} 3. Nf3 {[%emt 0:00:06]} c5 {[%emt 0:00:00]} 4. d5 {[%emt 0:00:07]} exd5 {[%emt 0:00:04]} 5. cxd5 {[%emt 0:00:08]} d6 {[%emt 0:00:12]} 6. Nc3 {[%emt 0:00:08]} g6 {[%emt 0:00:38]} 7. g3 {[%emt 0:00:06]} Bg7 {[%emt 0:00:08]} 8. Bg2 {[%emt 0:00:05]} O-O {[%emt 0:00:08]} 9. O-O {[%emt 0:00:05]} Re8 {[%emt 0:02:03]} 10. Bf4 {[%emt 0:00:53]} b6 {[%emt 0:06:25]} 11. Re1 {[%emt 0:08:50]} Ba6 {[%emt 0:04:05]} 12. e4 {[%emt 0:08:50]} Nh5 {[%emt 0:03:25]} 13. Bg5 {[%emt 0:01:05]} Qc8 {[%emt 0:02:02]} 14. Rc1 {[%emt 0:19:36]} Nd7 {[%emt 0:07:59]} 15. Qd2 {[%emt 0:06:00]} Qb7 {[%emt 0:06:03]} 16. g4 {[%emt 0:01:57]} Nhf6 {[%emt 0:00:32]} 17. Qf4 {[%emt 0:00:29]} b5 {[%emt 0:11:03]} 18. Qxd6 {[%emt 0:11:43]} b4 {[%emt 0:10:21]} 19. Bxf6 {[%emt 0:04:04]} Nxf6 {[%emt 0:00:37]} 20. Na4 {[%emt 0:01:15]} Nxe4 {[%emt 0:11:19]} 21. Rxe4 {[%emt 0:07:06]} Rxe4 {[%emt 0:00:03]} 22. Nxc5 {[%emt 0:00:38]} Rc8 {[%emt 0:00:48]} 23. Rd1 {[%emt 0:00:16]} Rxc5 {[%emt 0:02:13]} 24. Qxc5 {[%emt 0:00:02]} Rxg4 {[%emt 0:00:19]} 25. Re1 {[%emt 0:11:22]} Qd7 {[%emt 0:03:28]} 26. Re7 {[%emt 0:04:44]} Rxg2+ {[%emt 0:00:18]} 27. Kh1 {[%emt 0:00:01]} Qxe7 {[%emt 0:06:40]} 28. Qxe7 {[%emt 0:01:09]} Rxf2 {[%emt 0:00:53]} 29. Qxa7 {[%emt 0:03:55]} Rxf3 {[%emt 0:01:45]} 30. Qxa6 {[%emt 0:00:20]} Bf8 {[%emt 0:02:51]} 31. Kg2 {[%emt 0:01:48]} Rf5 {[%emt 0:01:14]} 32. Qa8 {[%emt 0:02:14]} Kg7 {[%emt 0:02:14]} 33. Qd8 {[%emt 0:00:46]} Rf6 {[%emt 0:00:49]} 34. Qc7 {[%emt 0:00:34]} Kg8 {[%emt 0:01:10]} 35. Qa7 {[%emt 0:00:36]} Rf5 {[%emt 0:00:54]} 36. Qd4 {[%emt 0:00:27]} Bd6 {[%emt 0:00:58]} 37. Qd3 {[%emt 0:00:34]} Kg7 {[%emt 0:00:53]} 38. Qd2 {[%emt 0:00:31]} h6 {[%emt 0:01:26]} 39. Qd1 {[%emt 0:00:27]} Kh7 {[%emt 0:01:31]} 40. Qd4 {[%emt 0:00:22]} Kg8 {[%emt 0:01:14]} 41. Qc4 {[%emt 0:00:37]} Bf8 {[%emt 0:00:51]} 42. Qd3 {[%emt 0:00:13]} Bd6 {[%emt 0:02:45]} 43. a4 {[%emt 0:00:07]} bxa3 {[%emt 0:00:30]} 44. bxa3 {[%emt 0:00:02]} Rf4 {[%emt 0:00:30]} 45. Qa6 {[%emt 0:00:46]} Bf8 {[%emt 0:01:51]} 46. a4 {[%emt 0:00:18]} Rd4 {[%emt 0:00:30]} 47. Qb5 {[%emt 0:00:48]} Rb4 {[%emt 0:00:38]} 48. Qc6 {[%emt 0:00:22]} Rb2+ {[%emt 0:00:16]} 49. Kg3 {[%emt 0:00:47]} Rb3+ {[%emt 0:01:07]} 50. Kf2 {[%emt 0:00:35]} Rb2+ {[%emt 0:00:32]} 51. Ke3 {[%emt 0:00:25]} Ra2 {[%emt 0:00:59]} 52. Qb5 {[%emt 0:01:02]} Rxh2 {[%emt 0:00:42]} 53. a5 {[%emt 0:00:22]} Rh3+ {[%emt 0:00:19]} 54. Ke2 {[%emt 0:00:20]} Rh2+ {[%emt 0:00:14]} 55. Kf3 {[%emt 0:00:31]} Rh3+ {[%emt 0:00:18]} 56. Kg2 {[%emt 0:00:30]} Ra3 {[%emt 0:00:08]} 57. a6 {[%emt 0:00:24]} h5 {[%emt 0:00:13]} 58. Qb7 {[%emt 0:00:29]} h4 {[%emt 0:00:12]} 59. a7 {[%emt 0:01:03]} h3+ {[%emt 0:00:07]} 60. Kh1 {[%emt 0:00:21]} Ra1+ {[%emt 0:01:29]} 61. Kh2 {[%emt 0:00:07]} Bd6+ {[%emt 0:00:24]} 62. Kxh3 {[%emt 0:00:09]} Ra3+ {[%emt 0:00:13]} 63. Kg2 {[%emt 0:00:16]} Ra2+ {[%emt 0:00:06]} 64. Kf3 {[%emt 0:00:05]} Ra3+ {[%emt 0:00:04]} 65. Ke2 {[%emt 0:00:06]} Kf8 {[%emt 0:00:22]} 66. a8=Q+ {[%emt 0:00:09]} Rxa8 {[%emt 0:00:05]} 67. Qxa8+ {[%emt 0:00:04]} Ke7 {[%emt 0:00:05]} 68. Qb7+ {[%emt 0:00:07]} Kf6 {[%emt 0:00:08]} 69. Qd7 {[%emt 0:00:03]} 1-0